bitfinex-derivatives/quotes_BTCF0:USTF0_20260315
["timestamp","ask_amount","ask_price","bid_price","bid_amount"]
[1773609212839,0.041839,71693.0,71681.0,0.043245]
[1773609215443,0.041839,71693.0,71682.0,0.041845]
[1773609215642,0.041837,71695.0,71681.0,0.0014]
[1773609216241,0.00734,71700.0,71681.0,0.0267193]
[1773609216432,0.041836,71698.0,71681.0,0.0267193]
[1773609216633,0.041836,71698.0,71688.0,0.041841]
[1773609216940,0.00734,71700.0,71688.0,0.0014]
[1773609217534,0.00734,71700.0,71690.0,0.04184]
[1773609218135,0.041834,71701.0,71690.0,0.04184]
[1773609218736,0.041834,71700.0,71688.0,0.043241]
[1773609219536,0.041834,71700.0,71689.0,0.04184]
[1773609220344,0.049174,71700.0,71689.0,0.04184]
[1773609221841,0.00734,71700.0,71691.0,0.041839]
[1773609222646,0.049174,71700.0,71689.0,0.04184]
[1773609224747,0.00734,71700.0,71690.0,0.04184]
[1773609225143,0.00734,71700.0,71691.0,0.041839]
[1773609225349,0.00734,71700.0,71693.0,0.041838]
[1773609225539,0.00272539,71700.0,71693.0,0.041838]
[1773609226234,0.041832,71704.0,71690.0,0.11296491]
[1773609226447,0.041832,71704.0,71690.0,0.0253193]
[1773609226852,0.041832,71704.0,71690.0,0.11296491]
[1773609227048,0.041832,71704.0,71693.0,0.041838]
[1773609227547,0.041832,71704.0,71694.0,0.041838]
[1773609228156,0.041831,71706.0,71694.0,0.041838]
[1773609228365,0.041831,71706.0,71695.0,0.041837]
[1773609228654,0.02413291,71709.0,71698.0,0.041835]
[1773609228850,0.02413291,71709.0,71699.0,0.00734]
[1773609229048,0.02413291,71713.0,71699.0,0.00734]
[1773609229254,0.06595991,71713.0,71702.0,0.041833]
[1773609229649,0.06595991,71713.0,71699.0,0.00734]
[1773609229851,0.02413291,71713.0,71699.0,0.00734]
[1773609230050,0.02413291,71713.0,71702.0,0.041833]
[1773609230355,0.02413291,71713.0,71700.0,0.041834]
[1773609230548,0.02553291,71713.0,71700.0,0.041834]
[1773609230951,0.0014,71712.0,71700.0,0.041834]
[1773609231548,0.0014,71714.0,71701.0,0.041833]
[1773609231960,0.02413291,71718.0,71701.0,0.041833]
[1773609232144,0.02656671,71717.0,71701.0,0.041833]
[1773609232351,0.041828,71711.0,71701.0,0.041833]
[1773609232745,0.041825,71717.0,71706.0,0.00734]
[1773609233352,0.0014,71716.0,71706.0,0.00734]
[1773609233552,0.00734,71709.0,71706.0,0.00734]
[1773609241465,0.041826,71714.0,71706.0,0.00734]
[1773609241666,0.041826,71714.0,71703.0,0.041832]
[1773609243362,0.041826,71714.0,71703.0,0.049172]
[1773609245769,0.041826,71714.0,71704.0,0.041832]
[1773609246968,0.043225,71716.0,71705.0,0.041831]
[1773609247166,0.041826,71715.0,71705.0,0.041831]
[1773609247367,0.041826,71715.0,71702.0,0.0014]
[1773609248972,0.041826,71715.0,71704.0,0.041831]
[1773609249671,0.041826,71715.0,71708.0,0.00734]
[1773609250367,0.00734,71711.0,71708.0,0.00734]
[1773609250872,0.041825,71716.0,71708.0,0.00734]
[1773609251172,0.041826,71715.0,71704.0,0.041831]
[1773609251565,0.1290133,71721.0,71702.0,0.043233]
[1773609251765,0.02482647,71720.0,71702.0,0.043233]
[1773609251976,0.02482647,71719.0,71702.0,0.043233]
[1773609252364,0.02482647,71719.0,71703.0,0.041832]
[1773609252876,0.041827,71713.0,71702.0,0.0014]
[1773609253873,0.041827,71713.0,71702.0,0.00874]
[1773609259478,0.041827,71713.0,71702.0,0.050573]
[1773609261972,0.041827,71713.0,71702.0,0.049173]
[1773609262173,0.041827,71713.0,71703.0,0.0014]
[1773609262979,0.06695579,71713.0,71703.0,0.0014]
[1773609264883,0.041827,71712.0,71703.0,0.0014]
[1773609265980,0.02512879,71711.0,71703.0,0.0014]
[1773609267183,0.02512879,71711.0,71706.0,0.00734]
[1773609267884,0.00734,71708.0,71706.0,0.00734]
[1773609268184,0.00734,71708.0,71706.0,0.00187957]
[1773609270694,0.00734,71708.0,71703.0,0.0014]
[1773609270695,0.02512879,71711.0,71703.0,0.0014]
[1773609271192,0.02512879,71710.0,71698.0,0.0014]
[1773609271382,0.02512879,71710.0,71697.0,0.0014]
[1773609271984,0.02512879,71710.0,71699.0,0.041834]
[1773609272385,0.02512879,71710.0,71700.0,0.041834]
[1773609272696,0.03058879,71710.0,71700.0,0.041834]
[1773609274196,0.02512879,71710.0,71700.0,0.041834]
[1773609275603,0.02512879,71709.0,71700.0,0.041834]
[1773609276095,0.02512879,71703.0,71690.0,0.00734]
[1773609276299,0.02512879,71699.0,71690.0,0.00734]
[1773609276500,0.02512879,71699.0,71690.0,0.04918]
[1773609276699,0.02512879,71699.0,71690.0,0.00734]
[1773609277700,0.02512879,71699.0,71688.0,0.041841]
[1773609277889,0.02512879,71699.0,71689.0,0.04184]
[1773609278291,0.06696379,71699.0,71689.0,0.04184]
[1773609278590,0.02512879,71698.0,71684.0,0.0014]
[1773609279390,0.02512879,71698.0,71685.0,0.0014]
[1773609279792,0.02512879,71698.0,71680.0,0.00734]
[1773609279793,0.02512879,71698.0,71686.0,0.0014]
[1773609280094,0.02512879,71698.0,71688.0,0.041841]
[1773609280703,0.02512879,71698.0,71689.0,0.041841]
[1773609280905,0.06836179,71702.0,71686.0,0.0014]
[1773609281095,0.043233,71702.0,71686.0,0.0014]
[1773609281801,0.043233,71702.0,71691.0,0.041839]
[1773609281992,0.041834,71701.0,71691.0,0.041839]
[1773609282192,0.041835,71700.0,71688.0,0.041841]
[1773609282388,0.041835,71700.0,71689.0,0.04184]
[1773609282591,0.043234,71702.0,71690.0,0.04184]
[1773609282798,0.041834,71701.0,71690.0,0.04184]
[1773609283699,0.02512879,71700.0,71690.0,0.04184]
[1773609286001,0.041834,71701.0,71690.0,0.04184]
[1773609288102,0.06696279,71701.0,71690.0,0.04184]
[1773609291514,0.02512879,71700.0,71690.0,0.04184]
[1773609292409,0.02272769,71699.0,71686.0,0.0014]
[1773609292610,0.02272769,71699.0,71689.0,0.04184]
[1773609294120,0.02272769,71698.0,71689.0,0.04184]
[1773609294307,0.06456469,71697.0,71687.0,0.041842]
[1773609294506,0.0014,71703.0,71680.0,0.00734]
[1773609294507,0.02272769,71695.0,71680.0,0.00734]
[1773609294706,0.02272769,71695.0,71686.0,0.041842]
[1773609295015,0.02272769,71695.0,71687.0,0.041842]
[1773609300221,0.02272769,71695.0,71686.0,0.041842]
[1773609302325,0.041836,71698.0,71681.0,0.0014]
[1773609302513,0.041836,71698.0,71688.0,0.041841]
[1773609302715,0.02272769,71697.0,71688.0,0.041841]
[1773609303518,0.02412769,71697.0,71688.0,0.041841]
[1773609304323,0.0014,71697.0,71688.0,0.041841]
[1773609304819,0.02272769,71702.0,71693.0,0.041838]
[1773609305124,0.0014,71702.0,71693.0,0.041838]
[1773609306023,0.0014,71703.0,71693.0,0.041838]
[1773609307423,0.041832,71705.0,71693.0,0.041838]
[1773609307627,0.043232,71704.0,71691.0,0.041839]
[1773609307926,0.041832,71704.0,71691.0,0.041839]
[1773609308117,0.043232,71704.0,71691.0,0.041839]
[1773609309025,0.041833,71703.0,71691.0,0.041839]
[1773609311530,0.041833,71703.0,71692.0,0.041839]
[1773609314439,0.00546,71710.0,71702.0,0.041833]
[1773609314628,0.00546,71710.0,71695.0,0.02347035]
[1773609315127,0.00546,71710.0,71696.0,0.0014]
[1773609315328,0.00546,71710.0,71701.0,0.041833]
[1773609315625,0.00546,71710.0,71696.0,0.0014]
[1773609316232,0.00546,71710.0,71700.0,0.041834]
[1773609316432,0.041827,71713.0,71700.0,0.041834]
[1773609316834,0.041827,71712.0,71700.0,0.041834]
[1773609317435,0.041828,71711.0,71700.0,0.041834]
[1773609317638,0.02272769,71706.0,71696.0,0.0014]
[1773609317840,0.02272769,71705.0,71696.0,0.0014]
[1773609318638,0.00546,71710.0,71702.0,0.041833]
[1773609318832,0.12402416,71720.0,71696.0,0.02487035]
[1773609318833,0.0014,71719.0,71706.0,0.04183]
[1773609319033,0.0014,71718.0,71706.0,0.04183]
[1773609319728,0.02272769,71721.0,71711.0,0.00734]
[1773609319729,0.041825,71717.0,71711.0,0.00734]
[1773609319935,0.043224,71718.0,71711.0,0.00734]
[1773609320137,0.02272769,71721.0,71709.0,0.041829]
[1773609320334,0.041823,71719.0,71707.0,0.04183]
[1773609320536,0.00049328,71713.0,71707.0,0.04183]
[1773609322036,0.06454969,71721.0,71704.0,0.0014]
[1773609322441,0.0014,71720.0,71704.0,0.0014]
[1773609322735,0.041823,71720.0,71704.0,0.0014]
[1773609322940,0.0014,71719.0,71709.0,0.041829]
[1773609324238,0.02272769,71721.0,71704.0,0.0014]
[1773609324438,0.06454969,71721.0,71704.0,0.0014]
[1773609324641,0.0014,71720.0,71710.0,0.041828]
[1773609324842,0.0014,71719.0,71710.0,0.041828]
[1773609325832,0.14827894,71725.0,71712.0,0.041827]
[1773609325833,0.041821,71723.0,71712.0,0.041827]
[1773609326033,0.00874,71729.0,71711.0,0.02231044]
[1773609326242,0.043218,71728.0,71712.0,0.0014]
[1773609327534,0.043218,71728.0,71719.0,0.00734]
[1773609327734,0.06756635,71728.0,71719.0,0.00734]
[1773609328136,0.00734,71721.0,71719.0,0.00734]
[1773609328944,0.06756635,71728.0,71719.0,0.00734]
[1773609329137,0.06756635,71728.0,71716.0,0.041825]
[1773609329845,0.041819,71727.0,71716.0,0.041825]
[1773609331346,0.041819,71727.0,71716.0,0.049165]
[1773609332846,0.043219,71727.0,71716.0,0.049165]
[1773609333047,0.041818,71729.0,71718.0,0.041823]
[1773609333237,0.041818,71728.0,71716.0,0.049165]
[1773609333747,0.041818,71728.0,71717.0,0.041824]
[1773609334146,0.043218,71728.0,71717.0,0.041824]
[1773609343946,0.041819,71727.0,71717.0,0.041824]
[1773609344851,0.043218,71728.0,71718.0,0.041824]
[1773609345252,0.0014,71729.0,71721.0,0.041822]
[1773609346160,0.0014,71729.0,71722.0,0.041821]
[1773609347958,0.03424291,71745.0,71716.0,0.00734]
[1773609347959,0.02574835,71746.0,71719.0,0.02231044]
[1773609348259,0.02574835,71746.0,71727.0,0.041818]
[1773609348260,0.041812,71739.0,71727.0,0.041818]
[1773609348847,0.0014,71738.0,71727.0,0.041818]
[1773609349047,0.0014,71738.0,71728.0,0.041818]
[1773609350250,0.041812,71739.0,71728.0,0.041818]
[1773609350654,0.0014,71738.0,71728.0,0.041818]
[1773609350852,0.02574835,71738.0,71724.0,0.0014]
[1773609351473,0.02434835,71730.0,71718.0,0.041824]
[1773609351654,0.12780927,71745.0,71721.0,0.02231044]
[1773609351964,0.041811,71741.0,71725.0,0.02251026]
[1773609352154,0.0014,71740.0,71729.0,0.041817]
[1773609352357,0.19050581,71739.0,71730.0,0.08760013]
[1773609352569,0.19050581,71738.0,71729.0,0.041817]
[1773609352865,0.15564731,71746.0,71723.0,0.0014]
[1773609352866,0.041808,71745.0,71731.0,0.041816]
[1773609353252,0.043208,71745.0,71731.0,0.041816]
[1773609354858,0.02173014,71744.0,71730.0,0.0014]
[1773609355156,0.041813,71737.0,71725.0,0.0014]
[1773609355366,0.041813,71737.0,71724.0,0.0014]
[1773609355568,0.041813,71737.0,71717.0,0.19000256]
[1773609355569,0.041813,71737.0,71718.0,0.02307618]
[1773609355758,0.0014,71738.0,71726.0,0.041819]
[1773609356448,0.0014,71738.0,71727.0,0.041818]
[1773609359163,0.0014,71738.0,71728.0,0.041818]
[1773609360056,0.0014,71738.0,71724.0,0.01608]
[1773609360554,0.0014,71738.0,71728.0,0.041817]
[1773609362065,0.0014,71744.0,71725.0,0.02307618]
[1773609362261,0.043209,71744.0,71732.0,0.041815]
[1773609362460,0.04181,71743.0,71730.0,0.041817]
[1773609363564,0.04181,71743.0,71731.0,0.041816]
[1773609366369,0.0014,71742.0,71732.0,0.041815]
[1773609366661,0.0334555,71743.0,71732.0,0.041815]
[1773609366866,0.05518564,71743.0,71732.0,0.041815]
[1773609370475,0.02173014,71743.0,71733.0,0.041815]
[1773609372171,0.043209,71744.0,71733.0,0.041815]
[1773609372368,0.1248994,71751.0,71734.0,0.041814]
[1773609372369,0.041808,71746.0,71734.0,0.041814]
[1773609372563,0.0014,71745.0,71734.0,0.041814]
[1773609373164,0.0014,71745.0,71735.0,0.041814]
[1773609373377,0.041808,71746.0,71735.0,0.041814]
[1773609373570,0.0014,71745.0,71735.0,0.041814]
[1773609375182,0.043208,71745.0,71735.0,0.041814]
[1773609375867,0.0014,71744.0,71735.0,0.041814]
[1773609377178,0.02906014,71753.0,71734.0,0.0874722]
[1773609377384,0.00733,71753.0,71740.0,0.0874722]
[1773609377572,0.0014,71757.0,71751.0,0.041804]
[1773609377771,0.0014,71756.0,71749.0,0.041805]
[1773609377971,0.041799,71760.0,71749.0,0.041805]
[1773609378477,0.0014,71759.0,71749.0,0.041805]
[1773609378685,0.041799,71760.0,71749.0,0.041805]
[1773609378874,0.0014,71759.0,71749.0,0.041805]
[1773609379076,0.0432,71759.0,71749.0,0.041805]
[1773609380188,0.0432,71759.0,71747.0,0.041806]
[1773609380376,0.0432,71759.0,71748.0,0.041806]
[1773609380572,0.0948022,71770.0,71740.0,0.0874722]
[1773609380573,0.00733,71770.0,71755.0,0.02307618]
[1773609380785,0.00733,71770.0,71763.0,0.041797]
[1773609382182,0.00733,71770.0,71761.0,0.041798]
[1773609382581,0.00733,71770.0,71763.0,0.041797]
[1773609383186,0.0014,71772.0,71763.0,0.041797]
[1773609384177,0.0014,71772.0,71761.0,0.041798]
[1773609384380,0.0260236,71770.0,71759.0,0.0014]
[1773609384584,0.041797,71765.0,71753.0,0.041803]
[1773609384981,0.0678206,71765.0,71751.0,0.041804]
[1773609385282,0.041797,71764.0,71751.0,0.041804]
[1773609385485,0.041797,71764.0,71752.0,0.041804]
[1773609385786,0.041798,71763.0,71750.0,0.041805]
[1773609385987,0.041798,71763.0,71751.0,0.041804]
[1773609386175,0.041798,71763.0,71752.0,0.041804]
[1773609386377,0.0014,71764.0,71752.0,0.041804]
[1773609387097,0.0014,71764.0,71753.0,0.041803]
[1773609387874,0.043197,71764.0,71753.0,0.041803]
[1773609389987,0.0014,71764.0,71754.0,0.041803]
[1773609390795,0.0014,71764.0,71752.0,0.041804]
[1773609390990,0.043197,71764.0,71752.0,0.041804]
[1773609391177,0.0014,71764.0,71753.0,0.041803]
[1773609392389,0.0014,71764.0,71754.0,0.041803]
[1773609394088,0.043197,71764.0,71749.0,0.0014]
[1773609394290,0.043197,71764.0,71753.0,0.041803]
[1773609395777,0.041799,71761.0,71741.0,0.02478752]
[1773609396190,0.041799,71760.0,71748.0,0.041806]
[1773609397592,0.0418,71759.0,71748.0,0.041806]
[1773609397895,0.0014,71761.0,71748.0,0.02478752]
[1773609398382,0.041797,71764.0,71748.0,0.02478752]
[1773609398692,0.0014,71763.0,71748.0,0.02478752]
[1773609398891,0.041797,71764.0,71748.0,0.02478752]
[1773609399096,0.0014,71763.0,71752.0,0.041803]
[1773609399290,0.0014,71763.0,71753.0,0.041803]
[1773609400086,0.041797,71764.0,71753.0,0.041803]
[1773609400287,0.0014,71763.0,71753.0,0.041803]
[1773609400592,0.041797,71764.0,71753.0,0.041803]
[1773609400894,0.043197,71764.0,71753.0,0.041803]
[1773609401085,0.041797,71764.0,71753.0,0.041803]
[1773609401285,0.041797,71764.0,71754.0,0.041802]
[1773609401286,0.0014,71764.0,71754.0,0.041802]
[1773609402095,0.041797,71765.0,71754.0,0.041802]
[1773609402297,0.0014,71764.0,71754.0,0.041802]
[1773609402897,0.043197,71764.0,71754.0,0.041802]
[1773609403090,0.041797,71764.0,71754.0,0.041802]
[1773609403295,0.043197,71764.0,71754.0,0.041802]
[1773609403794,0.0418,71759.0,71747.0,0.0014]
[1773609404192,0.0418,71759.0,71749.0,0.041806]
[1773609404386,0.0874722,71760.0,71749.0,0.041806]
[1773609404586,0.041799,71761.0,71749.0,0.041806]
[1773609405098,0.041799,71761.0,71750.0,0.041805]
[1773609405496,0.041801,71758.0,71741.0,0.0014]
[1773609405694,0.041801,71758.0,71747.0,0.041807]
[1773609407997,0.041801,71757.0,71747.0,0.041807]
[1773609408300,0.0678236,71759.0,71747.0,0.041807]
[1773609408804,0.0418,71759.0,71747.0,0.041807]
[1773609409696,0.041801,71758.0,71747.0,0.041807]
[1773609411710,0.0418,71760.0,71743.0,0.02478752]
[1773609412297,0.02561479,71762.0,71742.0,0.0014]
[1773609412508,0.0418,71759.0,71742.0,0.0014]
[1773609414002,0.0418,71759.0,71748.0,0.041806]
[1773609420108,0.0254878,71751.0,71738.0,0.041812]
[1773609420412,0.041806,71749.0,71739.0,0.041811]
[1773609420602,0.0014,71748.0,71739.0,0.041811]
[1773609422511,0.0014,71748.0,71732.0,0.02565737]
[1773609423005,0.0014,71748.0,71733.0,0.02201]
[1773609423199,0.0014,71748.0,71734.0,0.0014]
[1773609423405,0.0014,71748.0,71733.0,0.02201]
[1773609423605,0.0014,71748.0,71734.0,0.0014]
[1773609424301,0.043207,71748.0,71736.0,0.041813]
[1773609424497,0.043207,71748.0,71737.0,0.041813]
[1773609426207,0.0014,71748.0,71739.0,0.041811]
[1773609426408,0.12843174,71759.0,71734.0,0.0014]
[1773609426409,0.00873,71760.0,71742.0,0.02565737]
[1773609426610,0.0014,71764.0,71755.0,0.041802]
[1773609426915,0.0254878,71773.0,71755.0,0.041802]
[1773609427215,0.0254878,71773.0,71752.0,0.02565737]
[1773609427216,0.041795,71768.0,71752.0,0.02565737]
[1773609427416,0.041791,71775.0,71757.0,0.02565737]
[1773609427601,0.0254878,71773.0,71750.0,0.0014]
[1773609427802,0.041797,71764.0,71750.0,0.0014]
[1773609428004,0.041797,71764.0,71753.0,0.041803]
[1773609428513,0.041797,71764.0,71751.0,0.041804]
[1773609428703,0.041797,71764.0,71752.0,0.041804]
[1773609429810,0.041798,71763.0,71750.0,0.043205]
[1773609430212,0.041798,71763.0,71750.0,0.041805]
[1773609430516,0.041798,71763.0,71751.0,0.041804]
[1773609433410,0.0014,71764.0,71752.0,0.041804]
[1773609433610,0.043197,71764.0,71752.0,0.041804]
[1773609434320,0.041798,71763.0,71752.0,0.041804]
[1773609435837,0.11294137,71762.0,71743.0,0.0014]
[1773609436019,0.11294137,71762.0,71730.0,0.08745357]
[1773609436020,0.041799,71761.0,71750.0,0.041805]
[1773609437014,0.0254878,71759.0,71735.0,0.16681064]
[1773609437213,0.0254878,71759.0,71739.0,0.0014]
[1773609437919,0.0254878,71759.0,71734.0,0.16681064]
[1773609438226,0.0254878,71759.0,71740.0,0.0014]
[1773609438427,0.0254878,71759.0,71738.0,0.04766737]
[1773609438722,0.0254878,71759.0,71740.0,0.0014]
[1773609438911,0.0254878,71759.0,71738.0,0.04766737]
[1773609439116,0.0254878,71759.0,71743.0,0.041809]
[1773609439117,0.041803,71755.0,71743.0,0.041809]
[1773609439430,0.0014,71754.0,71743.0,0.041809]
[1773609439609,0.0014,71754.0,71738.0,0.02565737]
[1773609439610,0.041805,71750.0,71739.0,0.041811]
[1773609439809,0.041806,71749.0,71733.0,0.02705737]
[1773609440123,0.041805,71751.0,71738.0,0.041812]
[1773609440328,0.041805,71751.0,71739.0,0.041811]
[1773609440924,0.041805,71750.0,71739.0,0.041811]
[1773609441423,0.041804,71752.0,71739.0,0.041811]
[1773609441726,0.041805,71751.0,71739.0,0.041811]
[1773609443818,0.041805,71750.0,71739.0,0.041811]
[1773609446125,0.041806,71749.0,71739.0,0.041811]
[1773609446519,0.041805,71751.0,71739.0,0.041811]
[1773609447622,0.041805,71750.0,71739.0,0.041811]
[1773609453319,0.0268878,71754.0,71738.0,0.02201]
[1773609453526,0.02278637,71753.0,71738.0,0.02201]
[1773609454532,0.041807,71747.0,71738.0,0.02201]
[1773609454735,0.0014,71746.0,71738.0,0.02201]
[1773609456833,0.0014,71747.0,71738.0,0.02429021]
[1773609457235,0.0014,71747.0,71737.0,0.041812]
[1773609458035,0.0014,71747.0,71738.0,0.00734]
[1773609458237,0.043207,71747.0,71738.0,0.00734]
[1773609460940,0.041808,71746.0,71738.0,0.00734]
[1773609461739,0.0014,71747.0,71738.0,0.00734]
[1773609461938,0.041809,71744.0,71738.0,0.00734]
[1773609462540,0.041808,71745.0,71738.0,0.00734]
[1773609467943,0.041809,71744.0,71738.0,0.00734]
[1773609469856,0.041808,71746.0,71738.0,0.00734]
[1773609471056,0.041808,71745.0,71738.0,0.00734]
[1773609476149,0.041809,71744.0,71738.0,0.00734]
[1773609476557,0.041809,71744.0,71734.0,0.041814]
[1773609478269,0.041809,71744.0,71734.0,0.049154]
[1773609479657,0.02466618,71747.0,71734.0,0.049154]
[1773609480764,0.041808,71745.0,71735.0,0.041814]
[1773609481060,0.02466618,71747.0,71734.0,0.00734]
[1773609481061,0.041809,71743.0,71734.0,0.00734]
[1773609481866,0.041809,71743.0,71730.0,0.0014]
[1773609481867,0.02326618,71739.0,71730.0,0.0014]
[1773609482063,0.04181,71743.0,71730.0,0.0014]
[1773609482260,0.04181,71743.0,71723.0,0.25038967]
[1773609482261,0.04181,71743.0,71723.0,0.02347161]
[1773609482461,0.04181,71743.0,71727.0,0.0014]
[1773609482770,0.04181,71743.0,71723.0,0.02347161]
[1773609482958,0.04181,71743.0,71727.0,0.02487161]
[1773609483263,0.0014,71743.0,71727.0,0.02487161]
[1773609483467,0.0014,71743.0,71728.0,0.02347161]
[1773609484970,0.0014,71743.0,71733.0,0.041815]
[1773609485263,0.0014,71743.0,71734.0,0.041814]
[1773609486466,0.041808,71745.0,71734.0,0.041814]
[1773609486772,0.0014,71745.0,71729.0,0.02347161]
[1773609487765,0.0014,71745.0,71728.0,0.00734]
[1773609488073,0.0014,71745.0,71729.0,0.02347161]
[1773609488274,0.0014,71745.0,71734.0,0.041814]
[1773609491264,0.0014,71745.0,71735.0,0.041813]
[1773609491465,0.00733,71751.0,71736.0,0.02347161]
[1773609491667,0.0014,71755.0,71735.0,0.08888652]
[1773609491668,0.0014,71755.0,71744.0,0.041808]
[1773609492873,0.041802,71756.0,71744.0,0.041808]
[1773609493173,0.0014,71758.0,71743.0,0.02487161]
[1773609493372,0.0014,71758.0,71744.0,0.02347161]
[1773609493572,0.02326618,71769.0,71748.0,0.02347161]
[1773609493780,0.02326618,71769.0,71753.0,0.041803]
[1773609494073,0.02326618,71769.0,71749.0,0.02347161]
[1773609494264,0.041796,71766.0,71753.0,0.041803]
[1773609494466,0.0014,71765.0,71753.0,0.041803]
[1773609494668,0.0014,71765.0,71754.0,0.041802]
[1773609495575,0.041795,71767.0,71755.0,0.041802]
[1773609496870,0.041795,71767.0,71754.0,0.049132]
[1773609497572,0.0014,71766.0,71754.0,0.049132]
[1773609500077,0.041795,71767.0,71755.0,0.02347161]
[1773609500377,0.0014,71768.0,71755.0,0.02347161]
[1773609500770,0.043195,71768.0,71755.0,0.06527361]
[1773609500970,0.041796,71767.0,71755.0,0.041802]
[1773609501169,0.043196,71767.0,71755.0,0.041802]
[1773609505178,0.041795,71767.0,71755.0,0.041802]
[1773609505477,0.0014,71768.0,71755.0,0.06352771]
[1773609505478,0.041796,71766.0,71755.0,0.06352771]
[1773609506575,0.043195,71768.0,71757.0,0.041801]
[1773609506874,0.02577402,71767.0,71757.0,0.06352671]
[1773609507066,0.041796,71766.0,71755.0,0.041802]
[1773609507670,0.041796,71766.0,71756.0,0.0014]
[1773609511077,0.041797,71765.0,71756.0,0.0014]
[1773609518889,0.0014,71768.0,71755.0,0.02199]
[1773609518890,0.041797,71764.0,71755.0,0.02199]
[1773609519091,0.041799,71761.0,71755.0,0.02199]
[1773609519284,0.02240167,71758.0,71748.0,0.0014]
[1773609519591,0.0418,71759.0,71748.0,0.0014]
[1773609520086,0.0418,71759.0,71748.0,0.043206]
[1773609520283,0.0418,71759.0,71748.0,0.041806]
[1773609521089,0.041801,71757.0,71746.0,0.041807]
[1773609521592,0.0418,71759.0,71752.0,0.00733]
[1773609522185,0.00733,71754.0,71752.0,0.00733]
[1773609522787,0.043199,71761.0,71746.0,0.0014]
[1773609524097,0.043199,71761.0,71748.0,0.041806]
[1773609524595,0.041799,71760.0,71748.0,0.041806]
[1773609525093,0.043199,71761.0,71750.0,0.041805]
[1773609525295,0.0014,71761.0,71746.0,0.00873]
[1773609525487,0.0014,71761.0,71752.0,0.041803]
[1773609528096,0.0014,71761.0,71750.0,0.00733]
[1773609528288,0.043199,71761.0,71750.0,0.049135]
[1773609530194,0.043199,71761.0,71750.0,0.041805]
[1773609530388,0.0014,71761.0,71751.0,0.041804]
[1773609530587,0.0014,71761.0,71746.0,0.0014]
[1773609530787,0.0014,71761.0,71752.0,0.041804]
[1773609533895,0.043197,71764.0,71753.0,0.041803]
[1773609535998,0.041799,71761.0,71750.0,0.049135]
[1773609536497,0.06386523,71763.0,71751.0,0.041804]
[1773609537399,0.06386523,71763.0,71752.0,0.041804]
[1773609542108,0.06386523,71763.0,71753.0,0.041803]
[1773609543108,0.0014,71767.0,71750.0,0.11535947]
[1773609543310,0.0014,71767.0,71752.0,0.0205897]
[1773609543804,0.02206723,71778.0,71757.0,0.08743977]
[1773609543995,0.0014,71777.0,71770.0,0.041793]
[1773609544618,0.00069656,71781.0,71771.0,0.041793]
[1773609544818,0.04248356,71781.0,71765.0,0.0014]
[1773609545123,0.043188,71780.0,71768.0,0.041794]
[1773609545622,0.0014,71779.0,71768.0,0.041794]
[1773609545822,0.0014,71779.0,71765.0,0.0014]
[1773609547024,0.0014,71779.0,71767.0,0.041795]
[1773609547718,0.041788,71780.0,71765.0,0.0014]
[1773609548111,0.041788,71780.0,71769.0,0.041794]
[1773609548307,0.00069656,71781.0,71765.0,0.0219897]
[1773609548915,0.00069656,71781.0,71770.0,0.041793]
[1773609551215,0.00069656,71781.0,71771.0,0.041792]
[1773609551824,0.00069656,71781.0,71772.0,0.041792]
[1773609552927,0.0014,71783.0,71766.0,0.0205897]
[1773609553119,0.02206723,71782.0,71765.0,0.0014]
[1773609553424,0.02206723,71782.0,71761.0,0.0205897]
[1773609553425,0.06385423,71782.0,71771.0,0.041793]
[1773609561626,0.02206723,71781.0,71771.0,0.041793]
[1773609561827,0.0014,71783.0,71772.0,0.041792]
[1773609562828,0.043186,71783.0,71772.0,0.041792]
[1773609564120,0.043186,71783.0,71771.0,0.041793]
[1773609565732,0.01987338,71782.0,71769.0,0.0014]
[1773609565925,0.01987338,71782.0,71767.0,0.0014]
[1773609566323,0.041788,71780.0,71769.0,0.041794]
[1773609571331,0.041788,71780.0,71768.0,0.0014]
[1773609571537,0.041788,71780.0,71770.0,0.041793]
[1773609575141,0.01987338,71782.0,71768.0,0.0014]
[1773609575737,0.01987338,71782.0,71760.0,0.02174109]
[1773609576028,0.01987338,71782.0,71761.0,0.0014]
[1773609576339,0.01987338,71782.0,71762.0,0.0014]
[1773609576840,0.041788,71779.0,71769.0,0.041794]
[1773609577040,0.041788,71779.0,71767.0,0.043195]
[1773609577243,0.06166438,71775.0,71763.0,0.0014]
[1773609577742,0.04179,71776.0,71763.0,0.0014]
[1773609577942,0.041789,71778.0,71766.0,0.041795]
[1773609578333,0.0014,71783.0,71766.0,0.041795]
[1773609578334,0.041789,71777.0,71766.0,0.041795]
[1773609580654,0.01987338,71787.0,71764.0,0.02314109]
[1773609580835,0.0014,71786.0,71769.0,0.041794]
[1773609581036,0.041788,71780.0,71769.0,0.041794]
[1773609581245,0.0014,71779.0,71769.0,0.041794]
[1773609581549,0.043188,71779.0,71768.0,0.041794]
[1773609584453,0.02127338,71779.0,71766.0,0.041796]
[1773609584643,0.01987338,71775.0,71764.0,0.0014]
[1773609585952,0.01987338,71775.0,71765.0,0.041796]
[1773609586152,0.01987338,71775.0,71764.0,0.0014]
[1773609586555,0.01987338,71775.0,71767.0,0.041795]
[1773609588348,0.041789,71778.0,71767.0,0.041795]
[1773609588553,0.06166238,71778.0,71767.0,0.041795]
[1773609588750,0.01987338,71777.0,71767.0,0.041795]
[1773609589554,0.06166338,71777.0,71767.0,0.041795]
[1773609590351,0.06166338,71777.0,71766.0,0.041796]
[1773609591254,0.06166338,71777.0,71767.0,0.041795]
[1773609594356,0.01966637,71776.0,71767.0,0.041795]
[1773609599753,0.0014,71779.0,71762.0,0.0014]
[1773609600362,0.06145337,71782.0,71763.0,0.01971324]